[Event "Early-Titled-Tuesday-Blitz-May-28-2024"]
[Site "Chess.com"]
[Date "2024.05.28"]
[Round "11"]
[White "Chernov_Mikhail"]
[Black "Felix-Rose"]
[Result "1-0"]
[WhiteElo "2275"]
[BlackElo "2277"]
[TimeControl "180+1"]
[EndTime "10:08:59 PDT"]
[Termination "Chernov_Mikhail won by resignation"]

1. e4 {[%clk 0:02:59.7]} 1... e5 {[%clk 0:02:59.2]} 2. Nf3 {[%clk 0:02:59.1]}
2... Nc6 {[%clk 0:02:59.3]} 3. Bc4 {[%clk 0:02:58.5]} 3... Nf6 {[%clk
0:02:59.2]} 4. d3 {[%clk 0:02:58.2]} 4... Bc5 {[%clk 0:02:58.9]} 5. c3 {[%clk
0:02:58.4]} 5... d6 {[%clk 0:02:58.7]} 6. h3 {[%clk 0:02:58.4]} 6... a5 {[%clk
0:02:58.3]} 7. a4 {[%clk 0:02:58.4]} 7... h6 {[%clk 0:02:57.3]} 8. Be3 {[%clk
0:02:55.5]} 8... Ba7 {[%clk 0:02:49.5]} 9. Qb3 {[%clk 0:02:53.5]} 9... O-O
{[%clk 0:02:45.6]} 10. Nbd2 {[%clk 0:02:53.1]} 10... Qe7 {[%clk 0:02:43.2]} 11.
O-O {[%clk 0:02:52.7]} 11... Re8 {[%clk 0:02:37]} 12. Rae1 {[%clk 0:02:43.7]}
12... Bxe3 {[%clk 0:02:29.1]} 13. fxe3 {[%clk 0:02:42.3]} 13... Nd8 {[%clk
0:02:21.5]} 14. d4 {[%clk 0:02:18.2]} 14... Nd7 {[%clk 0:02:13.1]} 15. dxe5
{[%clk 0:01:49.1]} 15... dxe5 {[%clk 0:02:11.4]} 16. Nh2 {[%clk 0:01:34]} 16...
Nb6 {[%clk 0:02:06.6]} 17. Rf2 {[%clk 0:01:04]} 17... Nxc4 {[%clk 0:01:56.4]}
18. Qxc4 {[%clk 0:01:03.2]} 18... Be6 {[%clk 0:01:55]} 19. Qe2 {[%clk
0:00:54.7]} 19... Qd7 {[%clk 0:01:41.7]} 20. Ref1 {[%clk 0:00:52]} 20... Qxa4
{[%clk 0:01:38.1]} 21. Ng4 {[%clk 0:00:50.5]} 21... Nc6 {[%clk 0:01:17.4]} 22.
Nxh6+ {[%clk 0:00:30.3]} 22... gxh6 {[%clk 0:01:14.8]} 23. Qh5 {[%clk
0:00:29.9]} 23... Qa2 {[%clk 0:00:39]} 24. Qxh6 {[%clk 0:00:26.5]} 24... Ne7
{[%clk 0:00:29.2]} 25. Nf3 {[%clk 0:00:19.2]} 25... Ng6 {[%clk 0:00:25.8]} 26.
Ng5 {[%clk 0:00:16.1]} 26... Rad8 {[%clk 0:00:14.4]} 27. Qh7+ {[%clk 0:00:13.1]}
27... Kf8 {[%clk 0:00:13.8]} 28. Qxg6 {[%clk 0:00:12.4]} 28... Ke7 {[%clk
0:00:10.8]} 29. Rxf7+ {[%clk 0:00:11.7]} 29... Bxf7 {[%clk 0:00:10.2]} 30. Rxf7+
{[%clk 0:00:12.2]} 30... Qxf7 {[%clk 0:00:09.4]} 31. Qxf7+ {[%clk 0:00:12.9]}
31... Kd6 {[%clk 0:00:09.7]} 32. Qd5+ {[%clk 0:00:11]} 32... Ke7 {[%clk
0:00:10.1]} 33. Qe6+ {[%clk 0:00:11.5]} 1-0

[Event "Early-Titled-Tuesday-Blitz-May-28-2024"]
[Site "Chess.com"]
[Date "2024.05.28"]
[Round "11"]
[White "Losingexperience"]
[Black "ImportedItalianMaple"]
[Result "1-0"]
[WhiteElo "2763"]
[BlackElo "2540"]
[TimeControl "180+1"]
[EndTime "10:09:04 PDT"]
[Termination "Losingexperience won on time"]

1. e4 {[%clk 0:03:00.9]} 1... c5 {[%clk 0:03:00.3]} 2. Nf3 {[%clk 0:02:59.9]}
2... a6 {[%clk 0:03:00.8]} 3. c3 {[%clk 0:02:57.5]} 3... d5 {[%clk 0:03:00.4]}
4. exd5 {[%clk 0:02:57.1]} 4... Qxd5 {[%clk 0:03:01.3]} 5. d4 {[%clk 0:02:57.4]}
5... e6 {[%clk 0:03:01.7]} 6. Na3 {[%clk 0:02:57]} 6... Nf6 {[%clk 0:02:59.7]}
7. Nc4 {[%clk 0:02:53.3]} 7... Nbd7 {[%clk 0:02:50.6]} 8. Be2 {[%clk 0:02:52.1]}
8... Be7 {[%clk 0:02:42.3]} 9. O-O {[%clk 0:02:51.7]} 9... O-O {[%clk
0:02:40.1]} 10. Nfe5 {[%clk 0:02:51.8]} 10... Nxe5 {[%clk 0:02:38.5]} 11. Nxe5
{[%clk 0:02:50.8]} 11... cxd4 {[%clk 0:02:31.9]} 12. cxd4 {[%clk 0:02:50.5]}
12... Qd6 {[%clk 0:02:18]} 13. Bf4 {[%clk 0:02:47.9]} 13... Nd5 {[%clk 0:02:13]}
14. Bg3 {[%clk 0:02:47.8]} 14... Qb4 {[%clk 0:02:02.6]} 15. Rb1 {[%clk
0:02:16.6]} 15... Bf6 {[%clk 0:01:48.6]} 16. Nc4 {[%clk 0:02:14.6]} 16... Rd8
{[%clk 0:01:40.6]} 17. Qc2 {[%clk 0:01:56.7]} 17... Bd7 {[%clk 0:01:29.2]} 18.
Bd6 {[%clk 0:01:54.3]} 18... Qa4 {[%clk 0:01:24.3]} 19. Qe4 {[%clk 0:01:33.1]}
19... Bc6 {[%clk 0:00:55.7]} 20. Qg4 {[%clk 0:01:32.9]} 20... Be8 {[%clk
0:00:19.1]} 21. Be5 {[%clk 0:01:18.9]} 21... Bxe5 {[%clk 0:00:17.8]} 22. dxe5
{[%clk 0:01:13.2]} 22... Ne7 {[%clk 0:00:12.3]} 23. Qg5 {[%clk 0:01:07.5]} 23...
Nf5 {[%clk 0:00:11.9]} 24. Nb6 {[%clk 0:01:07.1]} 24... Qc2 {[%clk 0:00:10.4]}
25. Nxa8 {[%clk 0:01:06.5]} 25... Rxa8 {[%clk 0:00:11.2]} 26. Bf3 {[%clk
0:01:03.4]} 26... Nd4 {[%clk 0:00:10.8]} 27. Bxb7 {[%clk 0:01:00]} 27... Rb8
{[%clk 0:00:11]} 28. Bxa6 {[%clk 0:00:59.1]} 28... Bc6 {[%clk 0:00:09.1]} 29.
Rbd1 {[%clk 0:00:55.3]} 29... Qe4 {[%clk 0:00:09.4]} 30. f3 {[%clk 0:00:41]}
30... Qd5 {[%clk 0:00:09.3]} 31. Qe3 {[%clk 0:00:38.6]} 31... Rb4 {[%clk
0:00:08.9]} 32. a3 {[%clk 0:00:36.2]} 32... Ra4 {[%clk 0:00:09.4]} 33. b3 {[%clk
0:00:33.8]} 33... Rxa6 {[%clk 0:00:09.7]} 34. Rxd4 {[%clk 0:00:33]} 34... Qa5
{[%clk 0:00:08.3]} 35. b4 {[%clk 0:00:32.3]} 35... Qc7 {[%clk 0:00:07.8]} 36.
Rfd1 {[%clk 0:00:31.9]} 36... g6 {[%clk 0:00:07.5]} 37. Qg5 {[%clk 0:00:29.2]}
37... Ra8 {[%clk 0:00:08.1]} 38. Rd8+ {[%clk 0:00:29.1]} 38... Rxd8 {[%clk
0:00:08.3]} 39. Qxd8+ {[%clk 0:00:29.8]} 39... Kg7 {[%clk 0:00:09.2]} 40. Qxc7
{[%clk 0:00:29.1]} 1-0

[Event "Early-Titled-Tuesday-Blitz-May-28-2024"]
[Site "Chess.com"]
[Date "2024.05.28"]
[Round "11"]
[White "shimastream"]
[Black "youngKID"]
[Result "1-0"]
[WhiteElo "3034"]
[BlackElo "2902"]
[TimeControl "180+1"]
[EndTime "10:09:05 PDT"]
[Termination "shimastream won on time"]

1. g3 {[%clk 0:02:56.2]} 1... e5 {[%clk 0:02:58.9]} 2. Bg2 {[%clk 0:02:55]} 2...
d5 {[%clk 0:02:58.5]} 3. d3 {[%clk 0:02:54.7]} 3... Nf6 {[%clk 0:02:57.1]} 4.
Nf3 {[%clk 0:02:54.4]} 4... Nc6 {[%clk 0:02:54.9]} 5. O-O {[%clk 0:02:54.1]}
5... h6 {[%clk 0:02:54.9]} 6. Nbd2 {[%clk 0:02:49.3]} 6... Be6 {[%clk
0:02:51.4]} 7. e4 {[%clk 0:02:49.1]} 7... dxe4 {[%clk 0:02:51.8]} 8. dxe4 {[%clk
0:02:47.1]} 8... Bc5 {[%clk 0:02:39.1]} 9. c3 {[%clk 0:02:46.7]} 9... a5 {[%clk
0:02:39.3]} 10. Qc2 {[%clk 0:02:39.5]} 10... O-O {[%clk 0:02:37.2]} 11. Nb3
{[%clk 0:02:29]} 11... Bb6 {[%clk 0:02:34]} 12. Re1 {[%clk 0:02:04.6]} 12... Ng4
{[%clk 0:02:06.7]} 13. Re2 {[%clk 0:01:57]} 13... Bc4 {[%clk 0:01:47.6]} 14. Rd2
{[%clk 0:01:56.2]} 14... Qe7 {[%clk 0:01:48.1]} 15. h3 {[%clk 0:01:55.6]} 15...
a4 {[%clk 0:01:37.3]} 16. hxg4 {[%clk 0:01:43.3]} 16... axb3 {[%clk 0:01:35]}
17. axb3 {[%clk 0:01:40.1]} 17... Rxa1 {[%clk 0:01:31.8]} 18. bxc4 {[%clk
0:01:40.7]} 18... Rd8 {[%clk 0:01:29.9]} 19. Rd5 {[%clk 0:01:36]} 19... Rxd5
{[%clk 0:01:04.4]} 20. cxd5 {[%clk 0:01:36.9]} 20... Na5 {[%clk 0:01:04.9]} 21.
Bf1 {[%clk 0:01:33.1]} 21... Nb3 {[%clk 0:00:47.2]} 22. Bxh6 {[%clk 0:01:13.2]}
22... gxh6 {[%clk 0:00:47.3]} 23. Qxb3 {[%clk 0:01:12.8]} 23... Qc5 {[%clk
0:00:47.8]} 24. Qc2 {[%clk 0:01:09.5]} 24... Qc4 {[%clk 0:00:34.6]} 25. Nh2
{[%clk 0:01:09.4]} 25... Kg7 {[%clk 0:00:22.4]} 26. Kg2 {[%clk 0:01:07.4]} 26...
Qa4 {[%clk 0:00:22.9]} 27. Qd3 {[%clk 0:01:01]} 27... Rd1 {[%clk 0:00:22.6]} 28.
Qe2 {[%clk 0:00:59.3]} 28... Rc1 {[%clk 0:00:22.4]} 29. g5 {[%clk 0:00:53.7]}
29... Rc2 {[%clk 0:00:13.7]} 30. gxh6+ {[%clk 0:00:54.1]} 30... Kxh6 {[%clk
0:00:14.3]} 31. Ng4+ {[%clk 0:00:53.3]} 31... Kg7 {[%clk 0:00:13.3]} 32. Qf3
{[%clk 0:00:53.4]} 32... Kf8 {[%clk 0:00:10.6]} 33. Bd3 {[%clk 0:00:43.4]} 33...
Rd2 {[%clk 0:00:08.6]} 34. Be2 {[%clk 0:00:29.7]} 34... Qc2 {[%clk 0:00:08.5]}
35. Nxe5 {[%clk 0:00:22.8]} 35... Ke7 {[%clk 0:00:05]} 36. Qxf7+ {[%clk
0:00:21.2]} 1-0

[Event "Early-Titled-Tuesday-Blitz-May-28-2024"]
[Site "Chess.com"]
[Date "2024.05.28"]
[Round "11"]
[White "xakevicius91"]
[Black "GeorgiosSouleidis"]
[Result "1-0"]
[WhiteElo "2531"]
[BlackElo "2596"]
[TimeControl "180+1"]
[EndTime "10:09:05 PDT"]
[Termination "xakevicius91 won by resignation"]

1. e4 {[%clk 0:03:00.9]} 1... c5 {[%clk 0:02:59.1]} 2. Nf3 {[%clk 0:03:00.7]}
2... e6 {[%clk 0:02:59.6]} 3. b3 {[%clk 0:03:00.5]} 3... Nc6 {[%clk 0:02:56.4]}
4. Bb2 {[%clk 0:02:57.7]} 4... a6 {[%clk 0:02:56.4]} 5. d4 {[%clk 0:02:56.2]}
5... cxd4 {[%clk 0:02:57.3]} 6. Nxd4 {[%clk 0:02:56.7]} 6... d6 {[%clk
0:02:53.4]} 7. Nxc6 {[%clk 0:02:56.3]} 7... bxc6 {[%clk 0:02:53.9]} 8. Bd3
{[%clk 0:02:55]} 8... Nf6 {[%clk 0:02:52.8]} 9. Nd2 {[%clk 0:02:54.9]} 9... Be7
{[%clk 0:02:53.4]} 10. Qe2 {[%clk 0:02:55.8]} 10... O-O {[%clk 0:02:53.7]} 11.
O-O {[%clk 0:02:56.4]} 11... a5 {[%clk 0:02:53.1]} 12. e5 {[%clk 0:02:56.7]}
12... Nd5 {[%clk 0:02:50.1]} 13. exd6 {[%clk 0:02:56.6]} 13... Bxd6 {[%clk
0:02:42.9]} 14. g3 {[%clk 0:02:55.7]} 14... Be7 {[%clk 0:02:31.6]} 15. Nc4
{[%clk 0:02:31.7]} 15... Ba6 {[%clk 0:02:16]} 16. Rad1 {[%clk 0:02:30.5]} 16...
Bf6 {[%clk 0:02:15.1]} 17. Ne5 {[%clk 0:02:30.5]} 17... Bxd3 {[%clk 0:02:14.3]}
18. Rxd3 {[%clk 0:02:29.4]} 18... Qc7 {[%clk 0:02:06.2]} 19. a3 {[%clk
0:02:29.3]} 19... Rfd8 {[%clk 0:01:55.5]} 20. Rfd1 {[%clk 0:02:27.7]} 20... c5
{[%clk 0:01:14.7]} 21. Qe4 {[%clk 0:02:24.8]} 21... Rac8 {[%clk 0:00:57.4]} 22.
c4 {[%clk 0:02:05.4]} 22... Ne7 {[%clk 0:00:57.3]} 23. Rd7 {[%clk 0:02:04.5]}
23... Rxd7 {[%clk 0:00:57.6]} 24. Rxd7 {[%clk 0:02:05]} 24... Qb6 {[%clk
0:00:55.4]} 25. Qb7 {[%clk 0:01:41.6]} 25... Qxb7 {[%clk 0:00:46.3]} 26. Rxb7
{[%clk 0:01:41.1]} 26... Rd8 {[%clk 0:00:33.4]} 27. Bc3 {[%clk 0:01:35.8]} 27...
h5 {[%clk 0:00:31.4]} 28. f4 {[%clk 0:01:31.8]} 28... Rd1+ {[%clk 0:00:28]} 29.
Kf2 {[%clk 0:01:31.6]} 29... Bxe5 {[%clk 0:00:17.5]} 30. fxe5 {[%clk 0:01:29]}
30... Nf5 {[%clk 0:00:04.2]} 31. Rb5 {[%clk 0:01:28.6]} 31... Rc1 {[%clk
0:00:03.9]} 32. Bxa5 {[%clk 0:01:28.8]} 32... Nd4 {[%clk 0:00:03.7]} 33. Rxc5
{[%clk 0:01:24.7]} 33... Nxb3 {[%clk 0:00:03.5]} 34. Rc8+ {[%clk 0:01:23.9]}
34... Kh7 {[%clk 0:00:03.9]} 35. Bb4 {[%clk 0:01:24.4]} 35... Rc2+ {[%clk
0:00:04]} 36. Kg1 {[%clk 0:01:24.2]} 36... Nd4 {[%clk 0:00:04.1]} 37. h3 {[%clk
0:01:12.7]} 37... Nf3+ {[%clk 0:00:04.6]} 38. Kf1 {[%clk 0:01:13.1]} 38... Nh2+
{[%clk 0:00:04.7]} 39. Ke1 {[%clk 0:01:13.6]} 39... Nf3+ {[%clk 0:00:05.1]} 40.
Kd1 {[%clk 0:01:14.1]} 40... Rg2 {[%clk 0:00:04.8]} 41. a4 {[%clk 0:01:12.6]}
41... Rxg3 {[%clk 0:00:04]} 42. a5 {[%clk 0:01:13]} 42... Nxe5 {[%clk
0:00:04.5]} 43. a6 {[%clk 0:01:10.2]} 43... Rg1+ {[%clk 0:00:03]} 44. Kc2 {[%clk
0:01:09.3]} 44... Ra1 {[%clk 0:00:02.7]} 45. Bc3 {[%clk 0:01:09.7]} 45... Rxa6
{[%clk 0:00:02.7]} 46. Bxe5 {[%clk 0:01:10]} 46... f6 {[%clk 0:00:03.3]} 47. Bc3
{[%clk 0:01:09.7]} 47... Kg6 {[%clk 0:00:03.1]} 48. c5 {[%clk 0:01:10.1]} 48...
Kf5 {[%clk 0:00:02]} 49. c6 {[%clk 0:01:10.2]} 49... g5 {[%clk 0:00:01.8]} 50.
c7 {[%clk 0:01:10.6]} 50... Rc6 {[%clk 0:00:02.2]} 51. Kd3 {[%clk 0:01:09.8]}
51... g4 {[%clk 0:00:02.5]} 52. hxg4+ {[%clk 0:01:10.3]} 52... hxg4 {[%clk
0:00:03.4]} 53. Ba5 {[%clk 0:01:10.5]} 53... g3 {[%clk 0:00:02.1]} 54. Rg8
{[%clk 0:01:10.6]} 54... Kf4 {[%clk 0:00:02.7]} 55. c8=Q {[%clk 0:01:10.5]}
55... Rxc8 {[%clk 0:00:03.4]} 56. Rxc8 {[%clk 0:01:10.9]} 56... Kf3 {[%clk
0:00:04.1]} 57. Rf8 {[%clk 0:01:10.1]} 57... f5 {[%clk 0:00:04.3]} 58. Bc7
{[%clk 0:01:05.3]} 58... g2 {[%clk 0:00:04.4]} 59. Rg8 {[%clk 0:01:04.3]} 59...
f4 {[%clk 0:00:03]} 60. Bxf4 {[%clk 0:01:03.7]} 60... Kxf4 {[%clk 0:00:03.3]}
61. Rxg2 {[%clk 0:01:03.8]} 1-0

[Event "Early-Titled-Tuesday-Blitz-May-28-2024"]
[Site "Chess.com"]
[Date "2024.05.28"]
[Round "11"]
[White "ArchibaldCerveza29"]
[Black "HajiyevKanan"]
[Result "1-0"]
[WhiteElo "2374"]
[BlackElo "2490"]
[TimeControl "180+1"]
[EndTime "10:09:05 PDT"]
[Termination "ArchibaldCerveza29 won by checkmate"]

1. e4 {[%clk 0:03:00.9]} 1... c6 {[%clk 0:02:48.4]} 2. d4 {[%clk 0:02:58.4]}
2... d5 {[%clk 0:02:49.3]} 3. exd5 {[%clk 0:02:58.7]} 3... cxd5 {[%clk
0:02:50.2]} 4. c4 {[%clk 0:02:58.4]} 4... e6 {[%clk 0:02:50.5]} 5. Nc3 {[%clk
0:02:58]} 5... Nf6 {[%clk 0:02:51.2]} 6. Nf3 {[%clk 0:02:57.8]} 6... Be7 {[%clk
0:02:51.8]} 7. c5 {[%clk 0:02:56]} 7... O-O {[%clk 0:02:51.7]} 8. Bf4 {[%clk
0:02:49.1]} 8... Ne4 {[%clk 0:02:47.9]} 9. Bd3 {[%clk 0:02:43.6]} 9... f5 {[%clk
0:02:47.4]} 10. O-O {[%clk 0:02:42.3]} 10... Nc6 {[%clk 0:02:45.5]} 11. Rc1
{[%clk 0:02:33.8]} 11... Bf6 {[%clk 0:02:42.9]} 12. Bb5 {[%clk 0:01:59.1]} 12...
Bd7 {[%clk 0:02:42.7]} 13. Bxc6 {[%clk 0:01:57.5]} 13... Bxc6 {[%clk 0:02:40.7]}
14. Be5 {[%clk 0:01:57]} 14... Be7 {[%clk 0:02:33.1]} 15. b4 {[%clk 0:01:56.3]}
15... a6 {[%clk 0:02:32.9]} 16. a4 {[%clk 0:01:55.9]} 16... Qd7 {[%clk
0:02:31.3]} 17. a5 {[%clk 0:01:22.1]} 17... Qe8 {[%clk 0:02:05.3]} 18. Nd2
{[%clk 0:01:11.9]} 18... Rd8 {[%clk 0:02:02.8]} 19. Ndxe4 {[%clk 0:01:02.7]}
19... dxe4 {[%clk 0:01:50.3]} 20. Qb3 {[%clk 0:01:02.1]} 20... Qf7 {[%clk
0:01:47]} 21. b5 {[%clk 0:00:58.6]} 21... axb5 {[%clk 0:01:42.7]} 22. Nxb5
{[%clk 0:00:59.5]} 22... Ra8 {[%clk 0:01:35.9]} 23. Qb4 {[%clk 0:00:56.9]} 23...
Qg6 {[%clk 0:01:32.7]} 24. g3 {[%clk 0:00:48.7]} 24... Qg4 {[%clk 0:01:29.9]}
25. f3 {[%clk 0:00:46.9]} 25... exf3 {[%clk 0:01:29.7]} 26. Rf2 {[%clk
0:00:46.7]} 26... h5 {[%clk 0:01:25.6]} 27. Nd6 {[%clk 0:00:40.6]} 27... h4
{[%clk 0:01:19.9]} 28. Qd2 {[%clk 0:00:33.3]} 28... hxg3 {[%clk 0:00:55.7]} 29.
hxg3 {[%clk 0:00:34.2]} 29... Bg5 {[%clk 0:00:53.6]} 30. Bf4 {[%clk 0:00:34.3]}
30... Bh4 {[%clk 0:00:47.7]} 31. Rh2 {[%clk 0:00:16.2]} 31... Bxg3 {[%clk
0:00:44.3]} 32. Bxg3 {[%clk 0:00:17.1]} 32... Qxg3+ {[%clk 0:00:44.7]} 33. Kf1
{[%clk 0:00:18]} 33... Rxa5 {[%clk 0:00:38.3]} 34. Qf2 {[%clk 0:00:15.7]} 34...
Qxf2+ {[%clk 0:00:28.3]} 35. Kxf2 {[%clk 0:00:13.9]} 35... g5 {[%clk 0:00:28.1]}
36. Rh6 {[%clk 0:00:12.5]} 36... Ra2+ {[%clk 0:00:21.8]} 37. Ke3 {[%clk
0:00:11.8]} 37... Kg7 {[%clk 0:00:09.2]} 38. Rch1 {[%clk 0:00:11.3]} 38... Bd5
{[%clk 0:00:04.8]} 39. Rh7+ {[%clk 0:00:10.7]} 39... Kf6 {[%clk 0:00:05.2]} 40.
R1h6# {[%clk 0:00:10.7]} 1-0

[Event "Early-Titled-Tuesday-Blitz-May-28-2024"]
[Site "Chess.com"]
[Date "2024.05.28"]
[Round "11"]
[White "maximnovik"]
[Black "RandomNoob04"]
[Result "0-1"]
[WhiteElo "2548"]
[BlackElo "2767"]
[TimeControl "180+1"]
[EndTime "10:09:08 PDT"]
[Termination "RandomNoob04 won by resignation"]

1. e4 {[%clk 0:02:59]} 1... d5 {[%clk 0:02:59.8]} 2. exd5 {[%clk 0:02:58.9]}
2... Qxd5 {[%clk 0:03:00.7]} 3. Nc3 {[%clk 0:02:59.4]} 3... Qa5 {[%clk
0:03:01.4]} 4. d4 {[%clk 0:02:59.7]} 4... Nf6 {[%clk 0:03:02]} 5. Nf3 {[%clk
0:02:59.7]} 5... Bf5 {[%clk 0:03:02.7]} 6. Ne5 {[%clk 0:02:57.2]} 6... c6 {[%clk
0:03:02.7]} 7. Bc4 {[%clk 0:02:56.8]} 7... e6 {[%clk 0:03:02.2]} 8. g4 {[%clk
0:02:54.9]} 8... Bg6 {[%clk 0:03:02.8]} 9. h4 {[%clk 0:02:53.9]} 9... Nbd7
{[%clk 0:03:03.3]} 10. Nxd7 {[%clk 0:02:53.2]} 10... Nxd7 {[%clk 0:03:04.2]} 11.
h5 {[%clk 0:02:53]} 11... Be4 {[%clk 0:03:04.9]} 12. O-O {[%clk 0:02:50.8]}
12... Bd5 {[%clk 0:03:05.6]} 13. Nxd5 {[%clk 0:02:50.2]} 13... cxd5 {[%clk
0:03:06.5]} 14. Bd3 {[%clk 0:02:50.5]} 14... g6 {[%clk 0:03:07.2]} 15. h6 {[%clk
0:02:48.3]} 15... Bd6 {[%clk 0:03:07.8]} 16. a4 {[%clk 0:02:45.7]} 16... O-O
{[%clk 0:03:00]} 17. c3 {[%clk 0:02:41]} 17... Qd8 {[%clk 0:02:55.2]} 18. Kg2
{[%clk 0:02:34.5]} 18... e5 {[%clk 0:02:49.9]} 19. Be3 {[%clk 0:02:25.3]} 19...
e4 {[%clk 0:02:43.3]} 20. Bc2 {[%clk 0:02:24]} 20... f5 {[%clk 0:02:38.5]} 21.
f4 {[%clk 0:02:21.2]} 21... Nf6 {[%clk 0:01:57.9]} 22. g5 {[%clk 0:02:17]} 22...
Ng4 {[%clk 0:01:58.3]} 23. Qe2 {[%clk 0:01:59.5]} 23... Qb6 {[%clk 0:01:57.8]}
24. Rab1 {[%clk 0:01:53.2]} 24... Qa6 {[%clk 0:01:57.7]} 25. Qe1 {[%clk
0:01:45.9]} 25... Rfd8 {[%clk 0:01:35.3]} 26. Bg1 {[%clk 0:01:44.6]} 26... e3
{[%clk 0:01:26.2]} 27. Rf3 {[%clk 0:01:20.2]} 27... Re8 {[%clk 0:01:25.8]} 28.
Bd1 {[%clk 0:01:12.1]} 28... Qd3 {[%clk 0:01:14.6]} 29. Be2 {[%clk 0:01:08.3]}
29... Qe4 {[%clk 0:01:15]} 30. Kg3 {[%clk 0:01:07.1]} 30... Nxh6 {[%clk
0:00:44.4]} 31. gxh6 {[%clk 0:01:03.4]} 31... g5 {[%clk 0:00:45.3]} 32. Qf1
{[%clk 0:00:48.4]} 32... Bxf4+ {[%clk 0:00:25.9]} 33. Rxf4 {[%clk 0:00:47.1]}
33... gxf4+ {[%clk 0:00:26.8]} 34. Qxf4 {[%clk 0:00:47.1]} 34... Qxb1 {[%clk
0:00:17]} 35. Qg5+ {[%clk 0:00:25.7]} 35... Kf7 {[%clk 0:00:16.9]} 36. Qg7+
{[%clk 0:00:20.8]} 36... Ke6 {[%clk 0:00:17.1]} 37. Qe5+ {[%clk 0:00:20.8]}
37... Kd7 {[%clk 0:00:13.4]} 38. Qxd5+ {[%clk 0:00:20.7]} 38... Kc8 {[%clk
0:00:12.8]} 39. Qxf5+ {[%clk 0:00:20.2]} 39... Qxf5 {[%clk 0:00:12.3]} 40. Bg4
{[%clk 0:00:18.9]} 40... Rg8 {[%clk 0:00:12.5]} 0-1

[Event "Early-Titled-Tuesday-Blitz-May-28-2024"]
[Site "Chess.com"]
[Date "2024.05.28"]
[Round "11"]
[White "Shivananda1964"]
[Black "aljado"]
[Result "0-1"]
[WhiteElo "2380"]
[BlackElo "2190"]
[TimeControl "180+1"]
[EndTime "10:09:09 PDT"]
[Termination "aljado won by resignation"]

1. d4 {[%clk 0:02:57.6]} 1... d5 {[%clk 0:02:57.7]} 2. Nf3 {[%clk 0:02:55.9]}
2... c6 {[%clk 0:02:55.7]} 3. g3 {[%clk 0:02:55.7]} 3... Nf6 {[%clk 0:02:54.4]}
4. Bg2 {[%clk 0:02:55.7]} 4... Bf5 {[%clk 0:02:54]} 5. O-O {[%clk 0:02:53.2]}
5... e6 {[%clk 0:02:54.3]} 6. c4 {[%clk 0:02:49.2]} 6... Be7 {[%clk 0:02:53.4]}
7. b3 {[%clk 0:02:45.2]} 7... Nbd7 {[%clk 0:02:53.1]} 8. Nbd2 {[%clk 0:02:35.6]}
8... O-O {[%clk 0:02:52.2]} 9. Bb2 {[%clk 0:02:34.7]} 9... a6 {[%clk 0:02:47.4]}
10. Nh4 {[%clk 0:02:27.8]} 10... Bg6 {[%clk 0:02:46]} 11. Nxg6 {[%clk
0:02:26.3]} 11... hxg6 {[%clk 0:02:44.8]} 12. e4 {[%clk 0:02:26.3]} 12... b5
{[%clk 0:02:38.5]} 13. Qe2 {[%clk 0:02:13.6]} 13... bxc4 {[%clk 0:02:29.9]} 14.
bxc4 {[%clk 0:02:03.4]} 14... Rb8 {[%clk 0:02:30.3]} 15. Rab1 {[%clk 0:01:58.7]}
15... Qa5 {[%clk 0:02:21]} 16. exd5 {[%clk 0:01:44.4]} 16... cxd5 {[%clk
0:02:18.2]} 17. cxd5 {[%clk 0:01:30.5]} 17... Nxd5 {[%clk 0:02:16.8]} 18. Nc4
{[%clk 0:01:24.8]} 18... Qd8 {[%clk 0:02:03.9]} 19. h4 {[%clk 0:01:16.4]} 19...
N7f6 {[%clk 0:02:02.5]} 20. Ne5 {[%clk 0:01:14.8]} 20... Qa5 {[%clk 0:01:57.8]}
21. Ba1 {[%clk 0:01:05.1]} 21... Qa4 {[%clk 0:01:49.3]} 22. Rxb8 {[%clk
0:00:54.9]} 22... Rxb8 {[%clk 0:01:47.8]} 23. Nxg6 {[%clk 0:00:55.1]} 23... Bd6
{[%clk 0:01:11.8]} 24. h5 {[%clk 0:00:39.2]} 24... Rc8 {[%clk 0:01:06.4]} 25. h6
{[%clk 0:00:34.4]} 25... Rc2 {[%clk 0:01:04.6]} 26. Qe1 {[%clk 0:00:25]} 26...
Rxa2 {[%clk 0:00:55]} 27. hxg7 {[%clk 0:00:21.8]} 27... Kxg7 {[%clk 0:00:53.5]}
28. Ne5 {[%clk 0:00:17.7]} 28... Qc2 {[%clk 0:00:47.8]} 29. g4 {[%clk
0:00:12.4]} 29... Bb4 {[%clk 0:00:43.7]} 30. Qb1 {[%clk 0:00:08.6]} 30... a5
{[%clk 0:00:17.6]} 31. g5 {[%clk 0:00:07.7]} 31... Nh5 {[%clk 0:00:16.9]} 32.
Be4 {[%clk 0:00:06.2]} 32... Qxb1 {[%clk 0:00:14.5]} 33. Rxb1 {[%clk 0:00:06.4]}
33... Re2 {[%clk 0:00:14.2]} 34. Bf3 {[%clk 0:00:05.6]} 34... Rxe5 {[%clk
0:00:12.9]} 35. Bxh5 {[%clk 0:00:04.2]} 35... Rxg5+ {[%clk 0:00:11.7]} 36. Kf1
{[%clk 0:00:04.9]} 36... Rxh5 {[%clk 0:00:11.9]} 37. Bb2 {[%clk 0:00:05.8]}
37... Rh1+ {[%clk 0:00:11.7]} 0-1